bitfinex-derivatives/quotes_SOLF0:USTF0_20240927
["timestamp","ask_amount","ask_price","bid_price","bid_amount"]
[1727446549906,3.21287073,158.56,158.43,43.27]
[1727446550105,43.27,158.55,158.43,43.27]
[1727446550304,3.154,158.49,158.46,3.1544]
[1727446550913,3.154,158.49,158.41,26.65]
[1727446550914,26.65,158.54,158.41,26.65]
[1727446551109,1.8534,158.55,158.44,26.65]
[1727446552315,3.1535,158.52,158.48,3.154]
[1727446553210,1.8534,158.55,158.47,26.65]
[1727446553411,3.5373,158.57,158.47,26.65]
[1727446553715,26.65,158.54,158.41,26.65]
[1727446554017,1.6886,158.53,158.41,26.65]
[1727446555210,1.6886,158.53,158.44,26.65]
[1727446555412,3.1537,158.51,158.47,3.1543]
[1727446555612,3.1537,158.51,158.44,26.65]
[1727446555809,1.6886,158.53,158.44,26.65]
[1727446556014,3.1535,158.52,158.48,3.154]
[1727446556216,1.6886,158.53,158.48,3.154]
[1727446556411,26.65,158.56,158.44,26.65]
[1727446556617,3.1535,158.52,158.48,3.1541]
[1727446556820,3.1535,158.52,158.44,26.65]
[1727446557017,26.65,158.56,158.44,26.65]
[1727446557217,3.1533,158.53,158.44,26.65]
[1727446557514,26.65,158.56,158.44,26.65]
[1727446557717,3.1533,158.53,158.49,3.1539]
[1727446557923,3.1533,158.53,158.39,3.1706518]
[1727446557924,3.5373,158.57,158.47,26.65]
[1727446558217,1.8512,158.59,158.49,26.65]
[1727446558420,3.1524,158.57,158.52,3.1533]
[1727446558621,1.8512,158.59,158.49,26.65]
[1727446559217,68.14,158.6,158.47,3.22568049]
[1727446559522,68.14,158.6,158.47,26.65]
[1727446559719,26.65,158.59,158.47,26.65]
[1727446559919,26.65,158.59,158.51,3.1534]
[1727446560116,26.65,158.59,158.47,26.65]
[1727446560311,26.65,158.59,158.49,3.1539]
[1727446560519,26.65,158.59,158.47,26.65]
[1727446561018,68.14,158.6,158.52,26.65]
[1727446561725,68.14,158.68,158.55,26.65]
[1727446562219,68.14,158.68,158.57,26.65]
[1727446562720,68.14,158.68,158.62,3.1512]
[1727446562922,68.14,158.68,158.6,26.65]
[1727446563724,3.1505,158.67,158.62,3.1512]
[1727446563924,68.14,158.68,158.6,26.65]
[1727446564125,3.1504,158.67,158.62,3.1513]
[1727446564319,68.14,158.68,158.57,26.65]
[1727446564515,68.14,158.68,158.55,26.65]
[1727446564715,26.65,158.67,158.55,26.65]
[1727446564921,26.65,158.65,158.53,26.65]
[1727446565123,1.7978,158.64,158.53,26.65]
[1727446565319,1.7978,158.64,158.5,26.65]
[1727446565320,26.65,158.62,158.5,26.65]
[1727446565523,3.5126,158.61,158.5,26.65]
[1727446565726,3.1523,158.58,158.48,26.65]
[1727446566129,3.5126,158.61,158.48,26.65]
[1727446566325,26.65,158.57,158.43,68.14]
[1727446566527,26.65,158.57,158.43,26.65]
[1727446566528,26.65,158.54,158.43,26.65]
[1727446566733,3.5126,158.53,158.41,26.65]
[1727446567030,26.65,158.52,158.4,26.65]
[1727446567533,26.65,158.52,158.38,26.65]
[1727446567826,3.5126,158.53,158.46,3.1544]
[1727446568031,3.5126,158.53,158.4,3.1233918]
[1727446568326,3.1538,158.5,158.44,3.1547]
[1727446568521,26.65,158.52,158.42,26.65]
[1727446568726,26.65,158.52,158.39,26.65]
[1727446568926,3.1547,158.45,158.37,26.65]
[1727446569130,26.65,158.47,158.35,75.20137724]
[1727446569523,1.6914,158.46,158.35,75.20137724]
[1727446569726,3.5126,158.53,158.42,26.65]
[1727446569930,3.1538,158.5,158.45,3.1547]
[1727446570226,26.65,158.5,158.35,75.20137724]
[1727446570430,3.1545,158.47,158.4,3.1557]
[1727446570623,26.65,158.5,158.37,26.65]
[1727446570827,26.65,158.42,158.2,231.3193]
[1727446571035,26.65,158.42,157.94,26.09562065]
[1727446571036,26.65,158.42,158.29,26.65]
[1727446571433,1.7142,158.41,158.32,26.65]
[1727446571628,1.7142,158.41,158.38,3.156]
[1727446571932,1.7142,158.41,158.31,26.65]
[1727446572233,3.1558,158.4,158.35,3.1565]
[1727446572435,1.8492,158.44,158.33,26.65]
[1727446573030,3.1556,158.41,158.33,26.65]
[1727446573225,1.8492,158.44,158.33,26.65]
[1727446573531,3.1555,158.42,158.33,26.65]
[1727446573835,1.8492,158.44,158.33,26.65]
[1727446574336,1.8492,158.44,158.24,26.65]
[1727446574638,1.8492,158.44,158.3,26.65]
[1727446574639,26.65,158.43,158.3,26.65]
[1727446575037,26.65,158.43,158.34,3.1569]
[1727446575234,26.65,158.43,158.3,26.65]
[1727446575431,26.65,158.4,158.27,26.65]
[1727446575635,3.1567,158.35,158.31,3.1574]
[1727446576142,3.1571,158.34,158.25,26.65]
[1727446576431,28.4838,158.38,158.18,68.16]
[1727446576637,26.65,158.35,158.21,26.65]
[1727446576834,1.8407,158.34,158.21,26.65]
[1727446577531,1.8407,158.34,158.24,26.65]
[1727446577735,28.4838,158.38,158.26,26.65]
[1727446577932,3.1572,158.33,158.29,3.1578]
[1727446578132,30.3024,158.38,158.26,26.65]
[1727446578339,3.6524,158.38,158.29,26.65]
[1727446578839,30.3024,158.38,158.24,26.65]
[1727446579039,26.65,158.35,158.24,26.65]
[1727446579337,26.65,158.35,158.21,26.65]
[1727446579646,26.65,158.31,158.17,101.92126051]
[1727446579844,1.7904,158.3,158.17,101.92126051]
[1727446580046,3.1587,158.25,158.17,101.92126051]
[1727446580734,3.5692,158.3,158.23,3.1591]
[1727446580940,3.5692,158.3,158.2,26.65]
[1727446581141,3.5692,158.3,158.17,101.92126051]
[1727446581338,26.65,158.28,158.17,101.92126051]
[1727446581640,26.65,158.28,158.17,75.27126051]
[1727446581837,26.65,158.28,158.1,6.3233]
[1727446581838,3.1593,158.23,158.12,3.21318598]
[1727446582046,26.65,158.28,158.14,26.65]
[1727446582342,43.4,158.27,158.14,43.4]
[1727446582841,3.1595,158.21,158.17,3.1602]
[1727446583343,43.4,158.23,158.09,43.4]
[1727446583548,1.6939,158.22,158.09,43.4]
[1727446583842,3.4932,158.22,158.09,43.4]
[1727446584239,3.4932,158.22,158.04,43.4]
[1727446584240,43.4,158.17,158.04,43.4]
[1727446584431,3.1612,158.13,158.04,43.4]
[1727446584638,43.4,158.17,158.04,43.4]
[1727446585140,43.4,158.17,158.03,43.4]
[1727446585643,43.4,158.17,158.05,43.4]
[1727446585837,2.3237,158.19,158.05,43.4]
[1727446586043,3.161,158.14,158.1,3.1617]
[1727446586436,3.1606,158.16,158.12,3.1613]
[1727446586637,2.3237,158.19,158.08,43.4]
[1727446586835,2.3237,158.19,158.11,43.4]
[1727446587841,3.4932,158.22,158.13,43.4]
[1727446588144,3.1587,158.25,158.16,43.4]
[1727446588841,70.6996,158.27,158.19,43.4]
[1727446589835,70.6996,158.27,158.21,3.1593]
[1727446590039,70.6996,158.27,158.19,43.4]
[1727446590547,70.6996,158.27,158.16,43.4]
[1727446591146,43.4,158.26,158.15,2.1036]
[1727446591645,4.7794,158.32,158.23,43.4]
[1727446591945,2.3596,158.36,158.26,43.4]
[1727446592140,43.4,158.31,158.15,2.1036]
[1727446592347,43.4,158.31,158.18,43.4]
[1727446592646,43.4,158.31,158.2,43.4]
[1727446593148,3.1584,158.27,158.2,43.4]
[1727446593443,43.4,158.31,158.2,43.4]
[1727446593648,2.4825,158.32,158.2,43.4]
[1727446593843,43.4,158.31,158.2,43.4]
[1727446594044,43.4,158.31,158.18,43.4]
[1727446594253,3.1588,158.25,158.18,43.4]
[1727446595246,3.1588,158.25,158.21,3.1594]
[1727446595846,2.4275,158.28,158.19,3.1598]
[1727446596053,43.4,158.26,158.13,2.4834]
[1727446596244,46.61138491,158.26,158.13,2.4834]
[1727446596545,73.2208,158.28,158.17,43.4]
[1727446597049,73.2208,158.28,158.13,2.4834]
[1727446597050,73.2208,158.28,158.2,43.4]
[1727446597552,3.1584,158.27,158.2,43.4]
[1727446598145,3.1584,158.27,158.23,3.159]
[1727446598745,2.4825,158.32,158.2,43.4]
[1727446599144,45.8825,158.32,158.18,43.4]
[1727446599346,43.4,158.29,158.18,43.4]
[1727446599847,2.4825,158.32,158.13,2.4834]
[1727446599848,43.4,158.27,158.15,43.4]
[1727446600048,2.5384,158.26,158.15,43.4]
[1727446600347,2.5384,158.26,158.21,3.1595]
[1727446600549,43.4,158.31,158.18,43.4]
[1727446600750,3.1587,158.26,158.18,43.4]
[1727446600954,45.9384,158.31,158.18,43.4]
[1727446601250,45.9384,158.31,158.26,3.1585]
[1727446601251,3.1579,158.29,158.26,3.1585]
[1727446601552,2.5384,158.31,158.22,43.4]
[1727446601845,3.1579,158.3,158.22,43.4]
[1727446602247,2.5384,158.31,158.22,43.4]
[1727446602446,3.1581,158.28,158.2,43.4]
[1727446602645,2.5384,158.31,158.2,43.4]
[1727446602847,2.5384,158.31,158.18,2.1008]
[1727446603252,3.1588,158.25,158.18,2.1008]
[1727446603649,3.159,158.24,158.18,2.1008]
[1727446603844,43.4,158.29,158.18,2.1008]
[1727446604247,43.4,158.27,158.15,43.4]
[1727446604552,3.13618979,158.26,158.15,43.4]
[1727446604749,3.1592,158.23,158.15,43.4]
[1727446604950,43.4,158.29,158.18,43.4]
[1727446605150,3.1588,158.25,158.22,3.1592]
[1727446605450,2.5384,158.31,158.2,43.4]
[1727446605651,2.5384,158.31,158.23,43.4]
[1727446605652,3.158,158.29,158.23,43.4]
[1727446605953,2.4825,158.32,158.25,43.4]
[1727446606153,43.4,158.36,158.25,43.4]
[1727446606154,2.3125,158.35,158.25,43.4]
[1727446606353,2.3125,158.35,158.25,26.7]
[1727446606854,3.1579,158.3,158.27,3.1583]
[1727446607056,2.3125,158.35,158.25,26.7]
[1727446607256,5.0092,158.37,158.28,26.7]
[1727446607465,3.1567,158.36,158.28,26.7]
[1727446608050,3.1567,158.36,158.32,3.1572]
[1727446608254,3.1567,158.36,158.25,26.7]
[1727446608255,68.26,158.38,158.3,26.7]
[1727446608558,2.3125,158.4,158.3,26.7]
[1727446608947,3.1561,158.39,158.3,26.7]
[1727446609152,2.3125,158.4,158.35,3.1567]
[1727446609566,3.1561,158.39,158.35,3.1567]
[1727446610153,3.1564,158.37,158.33,3.1571]
[1727446610358,45.6925,158.4,158.28,43.38]
[1727446611055,43.38,158.38,158.25,43.38]
[1727446611563,45.6925,158.4,158.28,43.38]
[1727446611762,2.3125,158.4,158.33,43.38]
[1727446611960,2.3834,158.42,158.33,43.38]
[1727446612360,3.1556,158.41,158.37,3.1562]
[1727446612562,48.3601,158.45,158.33,43.38]
[1727446612865,3.1558,158.4,158.35,3.1565]
[1727446613059,48.3601,158.45,158.35,3.1565]
[1727446613257,43.38,158.43,158.31,43.38]
[1727446613659,43.38,158.41,158.29,2.1004]
[1727446613860,3.1567,158.36,158.32,3.1572]
[1727446614167,43.38,158.41,158.25,43.38]
[1727446614365,3.157,158.34,158.28,43.38]
[1727446614566,43.38,158.41,158.25,43.38]
[1727446614962,3.1567,158.36,158.32,3.1572]
[1727446615158,3.1567,158.36,158.25,43.38]
[1727446615465,43.38,158.41,158.28,43.38]
[1727446615768,43.38,158.41,158.25,43.38]
[1727446615769,2.4465,158.42,158.31,43.38]
[1727446616157,2.4465,158.42,158.34,43.38]
[1727446616764,3.1559,158.4,158.37,3.1562]
[1727446616967,2.4465,158.42,158.34,43.38]
[1727446617168,2.4465,158.42,158.31,43.38]
[1727446617468,3.156,158.39,158.36,3.1565]
[1727446617664,3.156,158.39,158.31,43.38]
[1727446617865,2.4465,158.42,158.31,43.38]
[1727446618059,2.4465,158.42,158.35,3.1566]
[1727446618467,2.4465,158.42,158.31,43.38]
[1727446618672,43.38,158.4,158.29,43.38]
[1727446618969,43.38,158.4,158.25,43.38]
[1727446619169,43.38,158.4,158.33,3.1571]
[1727446619170,3.1566,158.36,158.33,3.1571]
[1727446619571,43.38,158.4,158.28,43.38]
[1727446619865,43.38,158.4,158.25,43.38]
[1727446619866,43.38,158.38,158.25,43.38]
[1727446620076,43.38,158.36,158.23,45.8563]
[1727446620262,2.3789,158.35,158.25,43.38]
[1727446621471,3.1566,158.36,158.33,3.157]
[1727446621783,3.23621845,158.36,158.25,43.38]
[1727446621980,2.346,158.37,158.25,43.38]
[1727446622582,5.53852451,158.37,158.25,43.38]
[1727446622779,2.346,158.37,158.25,43.38]
[1727446622981,3.1562,158.38,158.35,3.1567]
[1727446623184,3.1562,158.38,158.3,43.38]
[1727446623681,2.3789,158.4,158.3,43.38]
[1727446624891,68.22,158.43,158.3,43.38]
[1727446625083,68.22,158.43,158.31,2.0967]
[1727446625381,68.22,158.43,158.3,43.38]
[1727446625382,43.38,158.41,158.3,43.38]
[1727446625588,68.22,158.43,158.3,43.38]
[1727446625987,45.8265,158.42,158.3,43.38]
[1727446626190,45.8265,158.42,158.33,3.157]
[1727446626383,43.38,158.39,158.26,2.0967]
[1727446627387,43.38,158.34,158.23,43.38]
[1727446627692,10.55597894,158.33,158.25,3.1587]
[1727446627982,43.38,158.32,158.19,2.0947]
[1727446628185,39.43,158.32,158.19,41.5247]
[1727446628387,7.3568,158.33,158.21,39.43]
[1727446628790,7.3568,158.33,158.29,3.1578]
[1727446629085,107.65,158.39,158.26,39.43]
[1727446629279,7.1207,158.38,158.26,39.43]
[1727446629694,3.1571,158.34,158.26,39.43]
[1727446630186,3.1571,158.34,158.3,3.1577]
[1727446630378,3.14665369,158.36,158.3,3.1577]
[1727446630582,7.1207,158.38,158.31,3.1575]
[1727446630790,7.1207,158.38,158.26,39.43]
[1727446630990,3.1567,158.35,158.26,39.43]
[1727446631289,7.1207,158.38,158.22,0.3739]
[1727446631290,7.1207,158.38,158.29,39.43]
[1727446631487,7.1207,158.38,158.31,39.43]
[1727446631488,4.8129,158.38,158.31,39.43]
[1727446631685,7.91279149,158.38,158.26,39.43]
[1727446631888,39.43,158.37,158.24,39.43]
[1727446632085,3.1573,158.33,158.24,39.43]
[1727446632286,24.25,158.36,158.28,3.1581]
[1727446632480,3.1577,158.31,158.22,24.6239]
[1727446632680,24.25,158.36,158.22,24.6239]
[1727446632987,24.25,158.34,158.14,6.3216]
[1727446633297,24.25,158.32,158.17,26.3481]
[1727446633482,3.1589,158.25,158.17,26.3481]
[1727446633681,24.25,158.29,158.17,26.3481]
[1727446633886,2.417,158.28,158.21,3.1594]
[1727446634688,2.417,158.28,158.16,39.44]
[1727446635191,2.417,158.28,158.19,39.44]
[1727446635592,2.417,158.28,158.16,39.44]
[1727446636192,5.5753,158.28,158.19,39.44]
[1727446636593,2.417,158.28,158.19,39.44]
[1727446637698,2.417,158.28,158.17,2.0977]
[1727446637893,2.417,158.28,158.2,3.1597]
[1727446638197,2.417,158.28,158.16,39.44]
[1727446638386,3.1592,158.23,158.19,3.1598]
[1727446638591,3.1592,158.23,158.15,2.0959]
[1727446638796,39.44,158.26,158.15,2.0959]
[1727446638986,39.44,158.26,158.13,2.0977]
[1727446639193,39.44,158.24,158.11,39.44]
[1727446639388,3.1598,158.2,158.15,3.1606]
[1727446639593,2.4398,158.23,158.15,3.1606]
[1727446639791,2.5204,158.22,158.15,3.1606]
[1727446639997,39.44,158.19,158.12,3.1612]
[1727446640190,2.3192,158.18,158.12,3.1612]
[1727446640704,3.1606,158.16,158.12,3.1612]
[1727446640897,2.3192,158.18,158.11,3.1615]
[1727446641099,2.3192,158.18,158.09,39.44]
[1727446641303,5.75539279,158.22,158.11,39.44]
[1727446641596,2.4398,158.23,158.14,39.44]
[1727446642000,5.5991,158.23,158.19,3.1598]
[1727446642203,2.4398,158.23,158.14,39.44]
[1727446642599,4.7737,158.27,158.17,39.44]
[1727446642799,4.7737,158.27,158.19,39.44]
[1727446643102,4.7737,158.27,158.22,3.159]
[1727446643103,3.1584,158.26,158.22,3.159]
[1727446643300,39.44,158.26,158.14,39.44]
[1727446643509,39.44,158.23,158.14,3.1605]
[1727446643804,39.44,158.23,158.09,39.44]
[1727446644198,3.1599,158.18,158.09,39.44]
[1727446644393,39.44,158.2,158.09,39.44]
[1727446644908,3.1601,158.17,158.13,3.1606]
[1727446645204,41.8997,158.2,158.09,39.44]
[1727446645505,41.8997,158.2,158.13,3.1607]
[1727446645704,41.8997,158.2,158.09,39.44]
[1727446645903,3.1601,158.17,158.13,3.1606]
[1727446646497,41.8997,158.2,158.09,39.44]
[1727446646808,39.44,158.25,158.14,39.44]
[1727446647102,7.2334,158.27,158.16,39.44]
[1727446648102,7.2334,158.27,158.25,3.1583]
[1727446648302,3.09865912,158.3,158.19,39.44]
[1727446648703,3.09865912,158.3,158.24,3.1585]
[1727446649099,7.2248,158.32,158.21,39.44]
[1727446649593,68.26,158.33,158.26,39.44]
[1727446649794,42.53989149,158.38,158.26,39.44]
[1727446650198,3.157,158.33,158.29,3.1576]
[1727446650400,39.44,158.34,158.22,2.0996]
[1727446650701,39.44,158.36,158.24,39.44]
[1727446650904,39.44,158.36,158.29,3.1575]
[1727446651206,39.44,158.36,158.24,39.44]
[1727446651207,42.55256579,158.36,158.24,39.44]
[1727446651604,2.4017,158.37,158.26,39.44]
[1727446651998,5.60872104,158.37,158.26,39.44]
[1727446652206,3.1566,158.35,158.3,3.1573]
[1727446653002,39.44,158.36,158.24,39.44]
[1727446653207,39.44,158.36,158.22,2.0996]
[1727446653208,39.44,158.33,158.22,2.0996]
[1727446653604,3.157,158.32,158.28,3.1578]
[1727446653910,5.60872104,158.37,158.26,39.44]
[1727446654105,2.4017,158.37,158.26,39.44]
[1727446654409,3.23473229,158.39,158.29,39.44]
[1727446654612,7.2326,158.41,158.29,39.44]
[1727446654905,10.43227172,158.41,158.31,39.44]
[1727446655210,10.43227172,158.41,158.24,6.3171]
[1727446655211,3.1562,158.36,158.28,39.44]
[1727446655509,7.2326,158.41,158.28,39.44]
[1727446655807,3.1561,158.37,158.33,3.1566]
[1727446656198,3.1561,158.37,158.28,39.44]
[1727446656708,39.44,158.36,158.25,2.0979]
[1727446656904,39.44,158.36,158.3,3.1574]
[1727446657104,3.1568,158.33,158.3,3.1574]
[1727446657306,3.1568,158.33,158.25,2.0979]
[1727446657505,39.44,158.36,158.25,2.0979]
[1727446658207,3.1574,158.31,158.22,2.4752]
[1727446658510,39.44,158.34,158.22,4.5714]
[1727446658709,39.44,158.34,158.26,3.158]
[1727446659209,39.44,158.34,158.22,4.5714]
[1727446660004,39.44,158.37,158.22,4.5714]
[1727446660302,39.44,158.37,158.25,39.44]
[1727446660503,3.1572,158.31,158.23,39.44]
[1727446660712,39.44,158.34,158.23,39.44]
[1727446660904,2.5274,158.33,158.23,39.44]
[1727446661308,2.5274,158.33,158.28,3.1577]
[1727446661905,3.157,158.32,158.29,3.1575]
[1727446662312,2.5274,158.33,158.23,39.44]
[1727446662509,39.44,158.37,158.25,39.44]
[1727446663217,39.44,158.37,158.22,4.5714]
[1727446663415,39.44,158.37,158.23,39.44]
[1727446664219,3.1571,158.32,158.28,3.1577]
[1727446664515,24.25,158.36,158.23,24.25]
[1727446664907,3.1573,158.31,158.27,3.1578]
[1727446665610,24.25,158.31,158.22,4.1958]
[1727446665914,24.25,158.31,158.18,24.25]
[1727446666213,7.0315,158.3,158.18,24.25]
[1727446666812,3.1583,158.26,158.23,3.1588]
[1727446667009,7.0315,158.3,158.18,24.25]
[1727446667214,4.6594,158.3,158.2,24.25]
[1727446667406,2.2931,158.3,158.2,24.25]
[1727446667614,3.1578,158.29,158.26,3.1581]
[1727446667814,2.2931,158.3,158.2,24.25]
[1727446668015,3.1581,158.27,158.25,3.1584]
[1727446668216,2.2931,158.3,158.25,3.1584]
[1727446668512,2.2931,158.3,158.18,24.25]
[1727446669014,2.2931,158.3,158.25,3.1582]
[1727446669015,3.1579,158.28,158.25,3.1582]
[1727446669811,3.1579,158.28,158.26,3.1582]
[1727446670114,3.1577,158.29,158.26,3.1582]
[1727446670519,3.1578,158.28,158.25,3.1583]
[1727446670716,2.2931,158.3,158.25,3.1583]
[1727446670917,3.1579,158.28,158.25,3.1583]
[1727446671714,2.2931,158.3,158.2,24.25]
[1727446672610,24.25,158.36,158.23,24.25]
[1727446672812,3.1576,158.3,158.23,24.25]
[1727446673018,3.09345186,158.33,158.23,24.25]
[1727446673218,3.1578,158.28,158.2,24.25]
[1727446673520,24.25,158.33,158.2,24.25]
[1727446673521,27.41075576,158.33,158.2,24.25]
[1727446673724,27.41075576,158.33,158.24,3.1584]
[1727446674022,24.25,158.31,158.18,24.25]
[1727446674218,3.1581,158.27,158.24,3.1585]
[1727446674611,3.13350369,158.3,158.24,3.1585]
[1727446674811,3.1584,158.25,158.22,3.1589]
[1727446675126,3.13350369,158.3,158.16,24.25]
[1727446675127,24.25,158.28,158.16,24.25]
[1727446675418,24.25,158.28,158.21,3.1591]
[1727446675419,3.1587,158.24,158.21,3.1591]
[1727446675918,3.1587,158.24,158.16,24.25]
[1727446676121,3.1584,158.25,158.22,3.1589]
[1727446676519,2.2941,158.29,158.18,24.25]
[1727446676816,2.2941,158.29,158.21,24.25]
[1727446677017,3.1584,158.25,158.22,3.1589]
[1727446677220,26.5441,158.29,158.16,24.25]
[1727446677415,2.4889,158.28,158.16,24.25]
[1727446677921,24.25,158.24,158.14,4.5717]
[1727446678121,3.1596,158.2,158.12,24.25]
[1727446678319,24.25,158.21,158.09,28.8274]
[1727446678527,24.25,158.19,158.09,4.5774]
[1727446678717,3.1603,158.16,158.09,4.1985]
[1727446679019,24.25,158.19,158.09,2.0989]
[1727446679221,24.25,158.17,158.06,75.33010243]
[1727446680029,2.4916,158.19,158.07,24.25]
[1727446680323,3.1601,158.17,158.13,3.1607]
[1727446680524,2.4916,158.19,158.13,3.1607]
[1727446680725,2.4916,158.19,158.07,24.25]
[1727446681118,3.1604,158.16,158.07,24.25]
[1727446681314,2.4916,158.19,158.09,24.25]
[1727446681618,2.4916,158.19,158.17,3.16]
[1727446681817,5.5855,158.2,158.06,75.33010243]
[1727446681818,2.426,158.2,158.12,24.25]
[1727446682022,70.6885,158.23,158.12,24.25]
[1727446682230,70.6885,158.23,158.14,24.25]
[1727446682523,68.26,158.23,158.14,24.25]
[1727446682713,71.50103144,158.23,158.12,24.25]
[1727446682917,68.26,158.23,158.12,24.25]
[1727446683422,3.1591,158.22,158.18,3.1597]
[1727446684515,3.1594,158.21,158.17,3.1599]
[1727446685623,24.25,158.22,158.1,24.25]
[1727446686019,24.25,158.19,158.06,75.33010243]
[1727446686630,24.25,158.21,158.1,24.25]
[1727446686829,2.5211,158.23,158.15,24.25]
[1727446687022,5.0128,158.25,158.15,24.25]
[1727446687821,3.1589,158.23,158.2,3.1594]
[1727446688023,5.0128,158.25,158.12,24.25]
[1727446688024,3.20374076,158.22,158.12,24.25]
[1727446688322,3.1594,158.2,158.17,3.1599]
[1727446688623,5.0128,158.25,158.14,24.25]
[1727446689022,5.0128,158.25,158.15,2.1021]
[1727446689423,24.25,158.24,158.12,24.25]
[1727446689621,24.25,158.22,158.09,24.25]
[1727446689927,2.5018,158.21,158.08,2.1021]
[1727446690725,24.25,158.19,158.08,2.1021]
[1727446691226,24.25,158.19,158.12,3.1608]
[1727446691627,3.1604,158.16,158.12,3.1608]
[1727446691829,24.25,158.19,158.08,2.1021]
[1727446692222,24.25,158.17,158.07,2.1026]
[1727446692426,24.25,158.15,158.01,2.4819]
[1727446692625,24.25,158.15,158.03,24.25]
[1727446693133,3.1607,158.14,158.11,3.1612]
[1727446694527,4.8708,158.16,158.05,24.25]
[1727446694728,24.25,158.2,158.08,24.25]
[1727446694931,28.9848,158.2,158.08,24.25]
[1727446696235,28.9848,158.2,158.05,24.25]
[1727446696727,28.9848,158.2,158.09,24.25]
[1727446698335,3.1599,158.18,158.15,3.1603]
[1727446698534,3.1599,158.18,158.09,24.25]
[1727446698737,28.9848,158.2,158.09,24.25]
[1727446698738,7.8943,158.2,158.09,24.25]
[1727446698931,24.25,158.27,158.14,24.25]
[1727446699133,4.8454,158.25,158.14,24.25]
[1727446699331,8.0039,158.25,158.22,3.159]
[1727446699633,8.0039,158.25,158.15,24.27]
[1727446699634,4.8454,158.25,158.15,24.27]
[1727446699827,3.1588,158.23,158.2,3.1593]
[1727446700027,3.1588,158.23,158.12,10.9107]
[1727446700028,27.43500012,158.23,158.12,4.5889]
[1727446700333,24.27,158.23,158.12,4.5889]
[1727446700535,3.1593,158.21,158.18,3.1597]
[1727446701239,27.46692831,158.23,158.12,4.5889]
[1727446701535,68.28,158.28,158.18,24.27]
[1727446702137,3.1582,158.26,158.18,24.27]
[1727446702733,3.1582,158.26,158.23,3.1588]
[1727446703438,3.1582,158.26,158.24,3.1586]
[1727446703943,3.1582,158.26,158.23,3.1587]
[1727446704143,68.28,158.28,158.18,24.27]
[1727446704641,3.1583,158.26,158.18,24.27]
[1727446704842,68.28,158.28,158.18,24.27]
[1727446705040,68.28,158.28,158.15,24.27]
[1727446705041,24.27,158.27,158.15,24.27]
[1727446705243,24.27,158.27,158.13,30.5916]
[1727446705443,24.27,158.25,158.13,24.27]
[1727446705643,3.1596,158.2,158.12,4.5889]